[Event "Titled Tuesday Blitz March 21 Late 2023"]
[White "Meissner, Felix"]
[Black "Vadim_Galchenko"]
[WhiteFideId "24671827"]
[WhiteElo "2350"]
[BlackElo "2176"]
[Result "1-0"]
[Round "04"]
[TimeControl "180+2"]
[Date "2023.03.21"]
[WhiteClock "0:00:19"]
[BlackClock "0:00:02"]

1. e4 {[%clk 0:01:33]}  e6 {[%clk 0:02:59]} 2. Nf3 {[%clk 0:01:34]}  d5 {[%clk 0:02:59]} 3. Nc3 {[%clk 0:01:34]}  d4 {[%clk 0:02:59]} 4. Ne2 {[%clk 0:01:34]}  c5 {[%clk 0:03:00]} 5. d3 {[%clk 0:01:34]}  Nc6 {[%clk 0:03:00]} 6. c4 {[%clk 0:01:35]}  e5 {[%clk 0:02:54]} 7. g3 {[%clk 0:01:35]}  Be7 {[%clk 0:02:53]} 8. h4 {[%clk 0:01:35]}  Bg4 {[%clk 0:02:51]} 9. Bh3 {[%clk 0:01:34]}  Qd7 {[%clk 0:02:51]} 10. Bxg4 {[%clk 0:01:33]}  Qxg4 {[%clk 0:02:52]} 11. Nh2 {[%clk 0:01:31]}  Qe6 {[%clk 0:02:51]} 12. a3 {[%clk 0:01:32]}  Nf6 {[%clk 0:02:41]} 13. f4 {[%clk 0:01:32]}  Nd7 {[%clk 0:02:30]} 14. f5 {[%clk 0:01:32]}  Qd6 {[%clk 0:02:30]} 15. Nf3 {[%clk 0:01:29]}  g6 {[%clk 0:02:26]} 16. g4 {[%clk 0:01:29]}  f6 {[%clk 0:02:17]} 17. Ng3 {[%clk 0:01:27]}  O-O-O {[%clk 0:02:16]} 18. h5 {[%clk 0:01:27]}  gxh5 {[%clk 0:02:14]} 19. Nxh5 {[%clk 0:01:23]}  Rdg8 {[%clk 0:02:14]} 20. Rg1 {[%clk 0:01:23]}  Nd8 {[%clk 0:02:12]} 21. Bd2 {[%clk 0:01:23]}  Nf7 {[%clk 0:02:12]} 22. b4 {[%clk 0:01:23]}  b6 {[%clk 0:02:06]} 23. b5 {[%clk 0:01:23]}  Bf8 {[%clk 0:01:56]} 24. Qc1 {[%clk 0:01:21]}  Nb8 {[%clk 0:01:43]} 25. a4 {[%clk 0:01:21]}  a5 {[%clk 0:01:43]} 26. bxa6 {[%clk 0:01:19]}  Nxa6 {[%clk 0:01:44]} 27. a5 {[%clk 0:01:20]}  Nb4 {[%clk 0:01:38]} 28. Bxb4 {[%clk 0:01:16]}  cxb4 {[%clk 0:01:39]} 29. a6 {[%clk 0:01:12]}  Kb8 {[%clk 0:01:39]} 30. Qc2 {[%clk 0:01:12]}  Ka7 {[%clk 0:01:28]} 31. Qa4 {[%clk 0:01:12]}  Be7 {[%clk 0:01:13]} 32. Nd2 {[%clk 0:01:09]}  Nh6 {[%clk 0:01:09]} 33. c5 {[%clk 0:01:04]}  bxc5 {[%clk 0:01:03]} 34. Nc4 {[%clk 0:01:04]}  Qc7 {[%clk 0:01:02]} 35. g5 {[%clk 0:00:59]}  Rxg5 {[%clk 0:00:55]} 36. Rxg5 {[%clk 0:00:58]}  fxg5 {[%clk 0:00:55]} 37. Ng7 {[%clk 0:00:58]}  Rb8 {[%clk 0:00:44]} 38. Ne6 {[%clk 0:00:57]}  Qc8 {[%clk 0:00:42]} 39. Na5 {[%clk 0:00:54]}  Rb6 {[%clk 0:00:39]} 40. Nc4 {[%clk 0:00:52]}  Rxa6 {[%clk 0:00:36]} 41. Qd1 {[%clk 0:00:46]}  Rxa1 {[%clk 0:00:25]} 42. Qxa1+ {[%clk 0:00:47]}  Qa6 {[%clk 0:00:26]} 43. Qd1 {[%clk 0:00:47]}  g4 {[%clk 0:00:22]} 44. Qc1 {[%clk 0:00:42]}  Bh4+ {[%clk 0:00:19]} 45. Kf1 {[%clk 0:00:42]}  Qa2 {[%clk 0:00:19]} 46. Nd2 {[%clk 0:00:39]}  Be7 {[%clk 0:00:13]} 47. Nxc5 {[%clk 0:00:29]}  Nf7 {[%clk 0:00:09]} 48. Ncb3 {[%clk 0:00:29]}  Bd6 {[%clk 0:00:09]} 49. Qc6 {[%clk 0:00:28]}  Qa6 {[%clk 0:00:09]} 50. Qd7+ {[%clk 0:00:28]}  Qb7 {[%clk 0:00:09]} 51. Qa4+ {[%clk 0:00:28]}  Qa6 {[%clk 0:00:09]} 52. Qe8 {[%clk 0:00:27]}  Qxd3+ {[%clk 0:00:09]} 53. Kg2 {[%clk 0:00:27]}  Qh3+ {[%clk 0:00:08]} 54. Kg1 {[%clk 0:00:26]}  Qg3+ {[%clk 0:00:09]} 55. Kh1 {[%clk 0:00:26]}  Qe1+ {[%clk 0:00:09]} 56. Kg2 {[%clk 0:00:26]}  Qe2+ {[%clk 0:00:09]} 57. Kg1 {[%clk 0:00:26]}  Qe3+ {[%clk 0:00:06]} 58. Kg2 {[%clk 0:00:26]}  Qe2+ {[%clk 0:00:06]} 59. Kg3 {[%clk 0:00:23]}  Qe3+ {[%clk 0:00:06]} 60. Kxg4 {[%clk 0:00:23]}  Qg5+ {[%clk 0:00:06]} 61. Kf3 {[%clk 0:00:22]}  Qh5+ {[%clk 0:00:04]} 62. Kf2 {[%clk 0:00:22]}  Qh4+ {[%clk 0:00:01]} 63. Ke2 {[%clk 0:00:22]}  Qe7 {[%clk 0:00:02]} 64. Qa4+ {[%clk 0:00:20]}  Kb8 {[%clk 0:00:02]} 65. Nc4 {[%clk 0:00:21]}  Qc7 {[%clk 0:00:02]} 66. Qb5+ {[%clk 0:00:20]}  Qb7 {[%clk 0:00:02]} 67. Qe8+ {[%clk 0:00:20]}  Ka7 {[%clk 0:00:03]} 68. Nba5 {[%clk 0:00:20]}  Qc7 {[%clk 0:00:03]} 69. Nc6+ {[%clk 0:00:19]}  Kb7 {[%clk 0:00:03]} 70. N6a5+ {[%clk 0:00:20]}  Ka7 {[%clk 0:00:03]} 71. Qb5 {[%clk 0:00:20]}  h5 {[%clk 0:00:02]} 72. Nc6+ {[%clk 0:00:19]}  Ka8 {[%clk 0:00:03]} 73. Qa6+ {[%clk 0:00:19]}  Qa7 {[%clk 0:00:02]} 74. Qxa7# {[%clk 0:00:19]} 1-0


[Site "https://www.chess.com"]

[Event "Titled Tuesday Blitz March 21 Late 2023"]
[White "Piriflillo"]
[Black "Bongo Akanga Ndjila, Barthelemy"]
[BlackFideId "10609431"]
[WhiteElo "2431"]
[BlackElo "1768"]
[Result "1-0"]
[Round "04"]
[TimeControl "180+2"]
[Date "2023.03.21"]
[WhiteClock "0:01:26"]
[BlackClock "0:00:09"]

1. d4 {[%clk 0:03:00]}  d5 {[%clk 0:02:49]} 2. c4 {[%clk 0:02:59]}  e6 {[%clk 0:02:48]} 3. Nc3 {[%clk 0:02:59]}  a6 {[%clk 0:02:49]} 4. cxd5 {[%clk 0:02:57]}  exd5 {[%clk 0:02:49]} 5. Bf4 {[%clk 0:02:57]}  c6 {[%clk 0:02:48]} 6. e3 {[%clk 0:02:54]}  Bd6 {[%clk 0:02:48]} 7. Bg3 {[%clk 0:02:54]}  Nf6 {[%clk 0:02:47]} 8. Bd3 {[%clk 0:02:53]}  Be6 {[%clk 0:02:46]} 9. Nf3 {[%clk 0:02:52]}  Qc7 {[%clk 0:02:47]} 10. Bxd6 {[%clk 0:02:45]}  Qxd6 {[%clk 0:02:46]} 11. Ne5 {[%clk 0:02:45]}  Nbd7 {[%clk 0:02:46]} 12. f4 {[%clk 0:02:44]}  Nb6 {[%clk 0:02:35]} 13. O-O {[%clk 0:02:39]}  g6 {[%clk 0:02:35]} 14. f5 {[%clk 0:02:34]}  gxf5 {[%clk 0:02:31]} 15. Bxf5 {[%clk 0:02:35]}  Bxf5 {[%clk 0:02:24]} 16. Rxf5 {[%clk 0:02:34]}  Nbd7 {[%clk 0:02:11]} 17. Qf3 {[%clk 0:02:26]}  O-O {[%clk 0:01:52]} 18. Rf1 {[%clk 0:02:16]}  Ne8 {[%clk 0:00:48]} 19. Nxf7 {[%clk 0:02:04]}  Qe7 {[%clk 0:00:43]} 20. Qg3+ {[%clk 0:01:58]}  Ng7 {[%clk 0:00:41]} 21. Nh6+ {[%clk 0:01:28]}  Kh8 {[%clk 0:00:39]} 22. Rf7 {[%clk 0:01:29]}  Rae8 {[%clk 0:00:09]} 23. Qxg7# {[%clk 0:01:26]} 1-0


[Site "https://www.chess.com"]

[Event "Titled Tuesday Blitz March 21 Late 2023"]
[White "Bullen, Alex"]
[Black "Forgacs, Attila Jr."]
[WhiteFideId "1801627"]
[BlackFideId "773654"]
[WhiteElo "2088"]
[BlackElo "2168"]
[Result "0-1"]
[Round "04"]
[TimeControl "180+2"]
[Date "2023.03.21"]
[WhiteClock "0:00:03"]
[BlackClock "0:00:08"]

1. d4 {[%clk 0:03:00]}  a6 {[%clk 0:03:00]} 2. e4 {[%clk 0:03:00]}  b5 {[%clk 0:03:00]} 3. a4 {[%clk 0:02:59]}  b4 {[%clk 0:02:59]} 4. c3 {[%clk 0:02:59]}  bxc3 {[%clk 0:02:59]} 5. Nxc3 {[%clk 0:03:00]}  Bb7 {[%clk 0:02:59]} 6. Bc4 {[%clk 0:02:55]}  e6 {[%clk 0:02:58]} 7. Qe2 {[%clk 0:02:52]}  Nf6 {[%clk 0:02:58]} 8. Bg5 {[%clk 0:02:50]}  h6 {[%clk 0:02:56]} 9. Bh4 {[%clk 0:02:47]}  Be7 {[%clk 0:02:56]} 10. Nf3 {[%clk 0:02:43]}  Nc6 {[%clk 0:02:49]} 11. d5 {[%clk 0:02:04]}  Na5 {[%clk 0:02:45]} 12. dxe6 {[%clk 0:02:04]}  fxe6 {[%clk 0:02:36]} 13. Ba2 {[%clk 0:01:59]}  O-O {[%clk 0:02:26]} 14. Rd1 {[%clk 0:01:55]}  Qe8 {[%clk 0:02:17]} 15. O-O {[%clk 0:01:52]}  Bb4 {[%clk 0:02:07]} 16. Bg3 {[%clk 0:01:28]}  Bxc3 {[%clk 0:02:00]} 17. bxc3 {[%clk 0:01:29]}  Nxe4 {[%clk 0:02:00]} 18. Bxc7 {[%clk 0:01:12]}  Nxc3 {[%clk 0:01:59]} 19. Qc2 {[%clk 0:01:00]}  Nxd1 {[%clk 0:01:55]} 20. Bxa5 {[%clk 0:00:56]}  Bxf3 {[%clk 0:01:27]} 21. gxf3 {[%clk 0:00:53]}  Qh5 {[%clk 0:01:26]} 22. Qxd1 {[%clk 0:00:41]}  Qxa5 {[%clk 0:01:25]} 23. Qxd7 {[%clk 0:00:38]}  Kh8 {[%clk 0:01:07]} 24. Qxe6 {[%clk 0:00:34]}  Rf6 {[%clk 0:00:49]} 25. Qe4 {[%clk 0:00:30]}  Raf8 {[%clk 0:00:45]} 26. Bb1 {[%clk 0:00:29]}  g6 {[%clk 0:00:41]} 27. Rd1 {[%clk 0:00:22]}  Qf5 {[%clk 0:00:14]} 28. Qe7 {[%clk 0:00:14]}  Qxf3 {[%clk 0:00:10]} 29. Rd2 {[%clk 0:00:12]}  Qg4+ {[%clk 0:00:09]} 30. Kh1 {[%clk 0:00:09]}  Qg5 {[%clk 0:00:08]} 31. Rd7 {[%clk 0:00:05]}  Qc1+ {[%clk 0:00:08]} 32. Kg2 {[%clk 0:00:04]}  Rxf2+ {[%clk 0:00:09]} 33. Kg3 {[%clk 0:00:04]}  Qg1+ {[%clk 0:00:09]} 34. Kh3 {[%clk 0:00:03]}  Qg2+ {[%clk 0:00:08]} 35. Kh4 {[%clk 0:00:03]}  R2f4# {[%clk 0:00:08]} 0-1


[Site "https://www.chess.com"]

[Event "Titled Tuesday Blitz March 21 Late 2023"]
[White "marik_spb"]
[Black "Ricaurte Lopez, Juan Carlos"]
[BlackFideId "3600327"]
[WhiteElo "2421"]
[BlackElo "2209"]
[Result "1-0"]
[Round "04"]
[TimeControl "180+2"]
[Date "2023.03.21"]
[WhiteClock "0:00:04"]
[BlackClock "0:00:09"]

1. d4 {[%clk 0:02:13]}  d6 {[%clk 0:02:58]} 2. c4 {[%clk 0:02:12]}  e5 {[%clk 0:02:55]} 3. dxe5 {[%clk 0:02:12]}  dxe5 {[%clk 0:02:55]} 4. Qxd8+ {[%clk 0:02:13]}  Kxd8 {[%clk 0:02:53]} 5. g3 {[%clk 0:02:13]}  c6 {[%clk 0:02:52]} 6. Bg2 {[%clk 0:02:12]}  Be6 {[%clk 0:02:52]} 7. b3 {[%clk 0:02:11]}  Nd7 {[%clk 0:02:48]} 8. Nf3 {[%clk 0:02:06]}  f6 {[%clk 0:02:46]} 9. Nc3 {[%clk 0:02:02]}  Kc7 {[%clk 0:02:45]} 10. Bb2 {[%clk 0:02:00]}  Rd8 {[%clk 0:02:43]} 11. O-O-O {[%clk 0:02:00]}  Nh6 {[%clk 0:02:36]} 12. h3 {[%clk 0:01:58]}  Nf7 {[%clk 0:02:22]} 13. Nd2 {[%clk 0:01:54]}  Be7 {[%clk 0:02:16]} 14. f4 {[%clk 0:01:32]}  exf4 {[%clk 0:02:01]} 15. gxf4 {[%clk 0:01:33]}  Bc5 {[%clk 0:01:53]} 16. Rhf1 {[%clk 0:01:23]}  f5 {[%clk 0:01:48]} 17. e4 {[%clk 0:01:21]}  Be3 {[%clk 0:01:45]} 18. Rf3 {[%clk 0:01:13]}  Bd4 {[%clk 0:01:29]} 19. e5 {[%clk 0:00:40]}  Nc5 {[%clk 0:01:25]} 20. Kc2 {[%clk 0:00:27]}  Rd7 {[%clk 0:01:22]} 21. Ndb1 {[%clk 0:00:24]}  Rhd8 {[%clk 0:01:19]} 22. Rg3 {[%clk 0:00:24]}  g6 {[%clk 0:01:16]} 23. h4 {[%clk 0:00:23]}  Nh6 {[%clk 0:01:14]} 24. Ne2 {[%clk 0:00:20]}  Bxb2 {[%clk 0:01:12]} 25. Rxd7+ {[%clk 0:00:20]}  Rxd7 {[%clk 0:01:10]} 26. Kxb2 {[%clk 0:00:21]}  Ng4 {[%clk 0:01:07]} 27. Kc3 {[%clk 0:00:19]}  Rd1 {[%clk 0:01:03]} 28. Nd2 {[%clk 0:00:16]}  Re1 {[%clk 0:00:54]} 29. Nd4 {[%clk 0:00:16]}  Bc8 {[%clk 0:00:51]} 30. b4 {[%clk 0:00:15]}  Ne6 {[%clk 0:00:50]} 31. Nxe6+ {[%clk 0:00:13]}  Bxe6 {[%clk 0:00:50]} 32. a3 {[%clk 0:00:12]}  Rg1 {[%clk 0:00:42]} 33. h5 {[%clk 0:00:11]}  gxh5 {[%clk 0:00:41]} 34. Nf1 {[%clk 0:00:10]}  h4 {[%clk 0:00:38]} 35. Rh3 {[%clk 0:00:09]}  Rxg2 {[%clk 0:00:37]} 36. Rxh4 {[%clk 0:00:10]}  Rf2 {[%clk 0:00:37]} 37. Rxh7+ {[%clk 0:00:09]}  Kb8 {[%clk 0:00:33]} 38. Nd2 {[%clk 0:00:09]}  Rxf4 {[%clk 0:00:31]} 39. Re7 {[%clk 0:00:09]}  Bc8 {[%clk 0:00:29]} 40. c5 {[%clk 0:00:09]}  b5 {[%clk 0:00:25]} 41. cxb6 {[%clk 0:00:09]}  axb6 {[%clk 0:00:23]} 42. Nc4 {[%clk 0:00:09]}  Re4 {[%clk 0:00:21]} 43. Nxb6 {[%clk 0:00:06]}  Rxe5 {[%clk 0:00:20]} 44. Rf7 {[%clk 0:00:05]}  Be6 {[%clk 0:00:18]} 45. Rf8+ {[%clk 0:00:04]}  Kc7 {[%clk 0:00:17]} 46. Na4 {[%clk 0:00:03]}  Re3+ {[%clk 0:00:16]} 47. Kd2 {[%clk 0:00:04]}  Rxa3 {[%clk 0:00:11]} 48. Nc5 {[%clk 0:00:04]}  Bd5 {[%clk 0:00:11]} 49. Rh8 {[%clk 0:00:04]}  Ne5 {[%clk 0:00:10]} 50. Rh7+ {[%clk 0:00:04]}  Kb6 {[%clk 0:00:09]} 51. Rb7# {[%clk 0:00:04]} 1-0


[Site "https://www.chess.com"]

[Event "Titled Tuesday Blitz March 21 Late 2023"]
[White "Michalski, Olaf"]
[Black "Foerster-Yialamas, Lucas"]
[WhiteFideId "1106740"]
[BlackFideId "30901774"]
[WhiteElo "2173"]
[BlackElo "2067"]
[Result "1/2-1/2"]
[Round "04"]
[TimeControl "180+2"]
[Date "2023.03.21"]
[WhiteClock "0:00:01"]
[BlackClock "0:00:04"]

1. d4 {[%clk 0:02:56]}  c6 {[%clk 0:03:00]} 2. c4 {[%clk 0:02:55]}  e5 {[%clk 0:02:55]} 3. dxe5 {[%clk 0:02:48]}  Qa5+ {[%clk 0:02:54]} 4. Nc3 {[%clk 0:02:47]}  Qxe5 {[%clk 0:02:55]} 5. Nf3 {[%clk 0:02:47]}  Qc7 {[%clk 0:02:54]} 6. g3 {[%clk 0:02:40]}  Nf6 {[%clk 0:02:53]} 7. Bf4 {[%clk 0:02:38]}  Qb6 {[%clk 0:02:53]} 8. Qd2 {[%clk 0:02:37]}  Bb4 {[%clk 0:02:47]} 9. Qe3+ {[%clk 0:02:06]}  Qxe3 {[%clk 0:02:45]} 10. Bxe3 {[%clk 0:02:06]}  d5 {[%clk 0:02:44]} 11. cxd5 {[%clk 0:01:54]}  Nxd5 {[%clk 0:02:45]} 12. Bd2 {[%clk 0:01:54]}  Nxc3 {[%clk 0:02:33]} 13. Bxc3 {[%clk 0:01:49]}  Bxc3+ {[%clk 0:02:34]} 14. bxc3 {[%clk 0:01:50]}  O-O {[%clk 0:02:32]} 15. Bg2 {[%clk 0:01:38]}  Na6 {[%clk 0:02:26]} 16. O-O {[%clk 0:01:37]}  Nc5 {[%clk 0:02:26]} 17. Nd4 {[%clk 0:01:34]}  Be6 {[%clk 0:02:23]} 18. a4 {[%clk 0:01:31]}  Bc4 {[%clk 0:02:22]} 19. Rfe1 {[%clk 0:01:31]}  a5 {[%clk 0:02:16]} 20. e4 {[%clk 0:01:13]}  b5 {[%clk 0:02:13]} 21. Nxc6 {[%clk 0:01:11]}  Nxa4 {[%clk 0:02:07]} 22. Re3 {[%clk 0:01:03]}  Rfe8 {[%clk 0:02:00]} 23. e5 {[%clk 0:01:03]}  Ra6 {[%clk 0:01:56]} 24. Nd4 {[%clk 0:00:57]}  b4 {[%clk 0:01:55]} 25. Bc6 {[%clk 0:00:48]}  Rxc6 {[%clk 0:01:52]} 26. Nxc6 {[%clk 0:00:47]}  Nxc3 {[%clk 0:01:52]} 27. Nxa5 {[%clk 0:00:46]}  Bd5 {[%clk 0:01:51]} 28. Rc1 {[%clk 0:00:18]}  Ra8 {[%clk 0:01:44]} 29. Rexc3 {[%clk 0:00:18]}  bxc3 {[%clk 0:01:45]} 30. Rxc3 {[%clk 0:00:18]}  g5 {[%clk 0:01:40]} 31. Rc5 {[%clk 0:00:18]}  Bf3 {[%clk 0:01:40]} 32. h4 {[%clk 0:00:17]}  g4 {[%clk 0:01:39]} 33. Kf1 {[%clk 0:00:15]}  Rd8 {[%clk 0:01:38]} 34. Rc1 {[%clk 0:00:13]}  Kg7 {[%clk 0:01:37]} 35. Ke1 {[%clk 0:00:12]}  Kg6 {[%clk 0:01:36]} 36. Nc6 {[%clk 0:00:12]}  Rd5 {[%clk 0:01:32]} 37. Ne7+ {[%clk 0:00:12]}  Kg7 {[%clk 0:01:29]} 38. Nxd5 {[%clk 0:00:13]}  Bxd5 {[%clk 0:01:30]} 39. Rc5 {[%clk 0:00:13]}  Be6 {[%clk 0:01:25]} 40. Kd2 {[%clk 0:00:13]}  Kg6 {[%clk 0:01:25]} 41. Ke3 {[%clk 0:00:12]}  Kf5 {[%clk 0:01:25]} 42. Kd4 {[%clk 0:00:12]}  Bb3 {[%clk 0:01:21]} 43. Rc8 {[%clk 0:00:12]}  Ke6 {[%clk 0:01:17]} 44. Rh8 {[%clk 0:00:11]}  Bc2 {[%clk 0:01:17]} 45. Rg8 {[%clk 0:00:11]}  Bg6 {[%clk 0:01:10]} 46. Rg7 {[%clk 0:00:09]}  Bf5 {[%clk 0:01:00]} 47. Rg5 {[%clk 0:00:07]}  f6 {[%clk 0:00:58]} 48. exf6 {[%clk 0:00:05]}  Kxf6 {[%clk 0:00:59]} 49. Rg8 {[%clk 0:00:05]}  Ke6 {[%clk 0:00:55]} 50. Rb8 {[%clk 0:00:06]}  Bc2 {[%clk 0:00:54]} 51. Rb6+ {[%clk 0:00:06]}  Kf7 {[%clk 0:00:50]} 52. Ke3 {[%clk 0:00:06]}  Bd1 {[%clk 0:00:43]} 53. Kf4 {[%clk 0:00:07]}  Be2 {[%clk 0:00:42]} 54. Kg5 {[%clk 0:00:07]}  Bd1 {[%clk 0:00:32]} 55. Rb7+ {[%clk 0:00:06]}  Kg8 {[%clk 0:00:32]} 56. Kf6 {[%clk 0:00:06]}  h6 {[%clk 0:00:24]} 57. Kg6 {[%clk 0:00:06]}  Bc2+ {[%clk 0:00:21]} 58. Kxh6 {[%clk 0:00:06]}  Be4 {[%clk 0:00:18]} 59. Kg5 {[%clk 0:00:06]}  Bxb7 {[%clk 0:00:17]} 60. Kxg4 {[%clk 0:00:06]}  Bc8+ {[%clk 0:00:17]} 61. Kg5 {[%clk 0:00:06]}  Kg7 {[%clk 0:00:14]} 62. f4 {[%clk 0:00:06]}  Bb7 {[%clk 0:00:12]} 63. f5 {[%clk 0:00:06]}  Bc8 {[%clk 0:00:10]} 64. g4 {[%clk 0:00:06]}  Kh7 {[%clk 0:00:10]} 65. Kf6 {[%clk 0:00:05]}  Ba6 {[%clk 0:00:05]} 66. Ke7 {[%clk 0:00:05]}  Bc4 {[%clk 0:00:05]} 67. g5 {[%clk 0:00:03]}  Bd5 {[%clk 0:00:03]} 68. h5 {[%clk 0:00:03]}  Bf3 {[%clk 0:00:02]} 69. h6 {[%clk 0:00:03]}  Bh5 {[%clk 0:00:02]} 70. f6 {[%clk 0:00:01]}  Kg8 {[%clk 0:00:03]} 71. h7+ {[%clk 0:00:01]}  Kxh7 {[%clk 0:00:03]} 72. f7 {[%clk 0:00:01]}  Kg6 {[%clk 0:00:02]} 73. f8=Q {[%clk 0:00:01]}  Kxg5 {[%clk 0:00:03]} 74. Qg7+ {[%clk 0:00:01]}  Kh4 {[%clk 0:00:04]} 75. Qf7 {[%clk 0:00:01]}  Bxf7 {[%clk 0:00:04]} 1/2-1/2


[Site "https://www.chess.com"]

[Event "Titled Tuesday Blitz March 21 Late 2023"]
[White "Oliveira, Tiago Batista"]
[Black "Perez Rodriguez, Jennifer"]
[WhiteFideId "2108291"]
[BlackFideId "3507831"]
[WhiteElo "1962"]
[BlackElo "2170"]
[Result "0-1"]
[Round "04"]
[TimeControl "180+2"]
[Date "2023.03.21"]
[WhiteClock "0:00:01"]
[BlackClock "0:00:54"]

1. d4 {[%clk 0:03:00]}  d5 {[%clk 0:02:59]} 2. c4 {[%clk 0:03:00]}  c6 {[%clk 0:02:59]} 3. Nf3 {[%clk 0:02:57]}  Nf6 {[%clk 0:02:59]} 4. Qc2 {[%clk 0:02:57]}  e6 {[%clk 0:02:58]} 5. g3 {[%clk 0:02:55]}  Nbd7 {[%clk 0:02:57]} 6. Bg2 {[%clk 0:02:55]}  Bd6 {[%clk 0:02:57]} 7. O-O {[%clk 0:02:54]}  O-O {[%clk 0:02:58]} 8. Nbd2 {[%clk 0:02:54]}  dxc4 {[%clk 0:02:52]} 9. e4 {[%clk 0:02:50]}  Bc7 {[%clk 0:02:42]} 10. Rd1 {[%clk 0:02:37]}  b5 {[%clk 0:02:32]} 11. e5 {[%clk 0:02:36]}  Nd5 {[%clk 0:02:31]} 12. Ne4 {[%clk 0:02:36]}  h6 {[%clk 0:02:28]} 13. g4 {[%clk 0:02:28]}  Re8 {[%clk 0:02:22]} 14. g5 {[%clk 0:02:28]}  hxg5 {[%clk 0:02:21]} 15. Nexg5 {[%clk 0:02:27]}  Nf8 {[%clk 0:02:21]} 16. Qe4 {[%clk 0:02:25]}  f5 {[%clk 0:02:16]} 17. Qh4 {[%clk 0:02:16]}  Re7 {[%clk 0:02:05]} 18. Kh1 {[%clk 0:02:06]}  Qe8 {[%clk 0:02:04]} 19. Rg1 {[%clk 0:01:58]}  g6 {[%clk 0:01:47]} 20. Bh3 {[%clk 0:01:41]}  Rg7 {[%clk 0:01:45]} 21. Rg2 {[%clk 0:01:30]}  Bd8 {[%clk 0:01:38]} 22. Bd2 {[%clk 0:01:25]}  b4 {[%clk 0:01:37]} 23. Rag1 {[%clk 0:01:22]}  a5 {[%clk 0:01:37]} 24. Qh6 {[%clk 0:01:17]}  c3 {[%clk 0:01:26]} 25. bxc3 {[%clk 0:01:07]}  bxc3 {[%clk 0:01:27]} 26. Bc1 {[%clk 0:01:05]}  Rb8 {[%clk 0:01:25]} 27. Ba3 {[%clk 0:00:55]}  Nf4 {[%clk 0:01:17]} 28. Bd6 {[%clk 0:00:16]}  Rbb7 {[%clk 0:01:05]} 29. Rg3 {[%clk 0:00:11]}  c2 {[%clk 0:01:01]} 30. Nxe6 {[%clk 0:00:04]}  N4xe6 {[%clk 0:00:58]} 31. Bxf8 {[%clk 0:00:02]}  Qxf8 {[%clk 0:00:57]} 32. Rxg6 {[%clk 0:00:01]}  Rxg6 {[%clk 0:00:53]} 33. Qxg6+ {[%clk 0:00:01]}  Rg7 {[%clk 0:00:54]} 0-1


[Site "https://www.chess.com"]

[Event "Titled Tuesday Blitz March 21 Late 2023"]
[White "dorpato"]
[Black "Davidson, Kevin"]
[BlackFideId "2056810"]
[WhiteElo "1988"]
[BlackElo "2151"]
[Result "1-0"]
[Round "04"]
[TimeControl "180+2"]
[Date "2023.03.21"]
[WhiteClock "0:00:10"]
[BlackClock "0:00:02"]

1. d4 {[%clk 0:03:00]}  Nf6 {[%clk 0:02:59]} 2. c4 {[%clk 0:02:59]}  g6 {[%clk 0:03:00]} 3. Nc3 {[%clk 0:02:58]}  Bg7 {[%clk 0:02:59]} 4. e4 {[%clk 0:02:57]}  d6 {[%clk 0:03:00]} 5. Nf3 {[%clk 0:02:57]}  O-O {[%clk 0:03:00]} 6. Be2 {[%clk 0:02:57]}  e5 {[%clk 0:03:00]} 7. Be3 {[%clk 0:02:57]}  Ng4 {[%clk 0:03:00]} 8. Bg5 {[%clk 0:02:57]}  f6 {[%clk 0:03:00]} 9. Bc1 {[%clk 0:02:56]}  f5 {[%clk 0:03:00]} 10. h3 {[%clk 0:02:50]}  Nxf2 {[%clk 0:02:54]} 11. Kxf2 {[%clk 0:02:45]}  fxe4 {[%clk 0:02:54]} 12. Nxe4 {[%clk 0:02:43]}  Qh4+ {[%clk 0:02:52]} 13. Ke3 {[%clk 0:02:29]}  Bf5 {[%clk 0:02:15]} 14. g4 {[%clk 0:01:55]}  exd4+ {[%clk 0:01:46]} 15. Kd3 {[%clk 0:01:29]}  Bxe4+ {[%clk 0:01:29]} 16. Kxe4 {[%clk 0:01:28]}  Nc6 {[%clk 0:01:17]} 17. Nxh4 {[%clk 0:01:27]}  Nb4 {[%clk 0:01:08]} 18. Bf4 {[%clk 0:00:54]}  g5 {[%clk 0:00:43]} 19. Nf5 {[%clk 0:00:49]}  Rae8+ {[%clk 0:00:29]} 20. Kf3 {[%clk 0:00:49]}  gxf4 {[%clk 0:00:26]} 21. Kxf4 {[%clk 0:00:40]}  Re3 {[%clk 0:00:12]} 22. Bf3 {[%clk 0:00:23]}  Nc6 {[%clk 0:00:03]} 23. Re1 {[%clk 0:00:20]}  Be5+ {[%clk 0:00:02]} 24. Kg5 {[%clk 0:00:19]}  Rf6 {[%clk 0:00:01]} 25. Rxe3 {[%clk 0:00:17]}  Rg6+ {[%clk 0:00:02]} 26. Kh5 {[%clk 0:00:16]}  dxe3 {[%clk 0:00:02]} 27. Bd5+ {[%clk 0:00:14]}  Kf8 {[%clk 0:00:02]} 28. Qf3 {[%clk 0:00:13]}  Bf6 {[%clk 0:00:02]} 29. Nh6 {[%clk 0:00:12]}  Kg7 {[%clk 0:00:02]} 30. h4 {[%clk 0:00:10]} 1-0


[Site "https://www.chess.com"]

[Event "Titled Tuesday Blitz March 21 Late 2023"]
[White "Martic, Ivan"]
[Black "Gerbelli Neto, Eduardo"]
[WhiteFideId "929301"]
[BlackFideId "2103281"]
[WhiteElo "2360"]
[BlackElo "2178"]
[Result "1-0"]
[Round "04"]
[TimeControl "180+2"]
[Date "2023.03.21"]
[WhiteClock "0:00:10"]
[BlackClock "0:00:01"]

1. d4 {[%clk 0:02:57]}  d5 {[%clk 0:02:59]} 2. Bf4 {[%clk 0:02:55]}  Nf6 {[%clk 0:02:52]} 3. e3 {[%clk 0:02:55]}  Bf5 {[%clk 0:02:51]} 4. c4 {[%clk 0:02:53]}  c6 {[%clk 0:02:51]} 5. Nc3 {[%clk 0:02:53]}  Qb6 {[%clk 0:02:37]} 6. Qb3 {[%clk 0:02:53]}  Qxb3 {[%clk 0:02:38]} 7. axb3 {[%clk 0:02:54]}  dxc4 {[%clk 0:02:32]} 8. bxc4 {[%clk 0:02:53]}  Nbd7 {[%clk 0:02:31]} 9. h3 {[%clk 0:02:48]}  e6 {[%clk 0:02:31]} 10. Nf3 {[%clk 0:02:43]}  Bb4 {[%clk 0:02:30]} 11. Nd2 {[%clk 0:02:43]}  O-O {[%clk 0:02:18]} 12. Be2 {[%clk 0:02:43]}  Rfe8 {[%clk 0:02:09]} 13. g4 {[%clk 0:02:34]}  Bg6 {[%clk 0:02:06]} 14. g5 {[%clk 0:02:34]}  Nh5 {[%clk 0:02:04]} 15. Bh2 {[%clk 0:02:29]}  e5 {[%clk 0:01:56]} 16. d5 {[%clk 0:02:20]}  Be7 {[%clk 0:01:23]} 17. h4 {[%clk 0:02:17]}  f6 {[%clk 0:01:24]} 18. Rg1 {[%clk 0:02:07]}  Nb6 {[%clk 0:01:07]} 19. Bg4 {[%clk 0:01:53]}  a6 {[%clk 0:00:54]} 20. Be6+ {[%clk 0:01:51]}  Kf8 {[%clk 0:00:53]} 21. Ke2 {[%clk 0:01:45]}  Bb4 {[%clk 0:00:47]} 22. Rgc1 {[%clk 0:01:19]}  Rad8 {[%clk 0:00:39]} 23. Nde4 {[%clk 0:01:07]}  f5 {[%clk 0:00:29]} 24. Nd2 {[%clk 0:01:07]}  Bxc3 {[%clk 0:00:19]} 25. Rxc3 {[%clk 0:00:54]}  cxd5 {[%clk 0:00:20]} 26. cxd5 {[%clk 0:00:54]}  Nxd5 {[%clk 0:00:20]} 27. Bxd5 {[%clk 0:00:53]}  Rxd5 {[%clk 0:00:21]} 28. Rc7 {[%clk 0:00:49]}  Re7 {[%clk 0:00:21]} 29. Rac1 {[%clk 0:00:48]}  f4 {[%clk 0:00:20]} 30. e4 {[%clk 0:00:45]}  Rdd7 {[%clk 0:00:17]} 31. Rc8+ {[%clk 0:00:38]}  Kf7 {[%clk 0:00:18]} 32. f3 {[%clk 0:00:27]}  Ke6 {[%clk 0:00:15]} 33. R1c5 {[%clk 0:00:21]}  Bf7 {[%clk 0:00:14]} 34. Nc4 {[%clk 0:00:21]}  Rd4 {[%clk 0:00:03]} 35. Rxe5+ {[%clk 0:00:19]}  Kd7 {[%clk 0:00:04]} 36. Rxe7+ {[%clk 0:00:19]}  Kxe7 {[%clk 0:00:04]} 37. Rc7+ {[%clk 0:00:17]}  Ke8 {[%clk 0:00:03]} 38. Ne5 {[%clk 0:00:13]}  Be6 {[%clk 0:00:02]} 39. Bg1 {[%clk 0:00:12]}  Ra4 {[%clk 0:00:02]} 40. Bc5 {[%clk 0:00:11]}  Ra2 {[%clk 0:00:01]} 41. Re7+ {[%clk 0:00:10]}  Kd8 {[%clk 0:00:02]} 42. Rxe6 {[%clk 0:00:11]}  Rxb2+ {[%clk 0:00:02]} 43. Kd3 {[%clk 0:00:11]}  b6 {[%clk 0:00:01]} 44. Bxb6+ {[%clk 0:00:10]} 1-0


[Site "https://www.chess.com"]